[Event "January 2 Early 2024"]
[Site "https://www.chess.com"]
[Date "2024.01.02"]
[Round "8"]
[White "Mazurkiewicz, Michal"]
[Black "Toman, Ondrej"]
[Result "1-0"]
[Board "118"]
[TimeControl "180+1"]
[WhiteFideId "1124943"]
[BlackFideId "344516"]
[WhiteElo "2407"]
[BlackElo "2582"]
[WhiteTeam "POL"]
[BlackTeam "CZE"]
[WhiteClock "0:01:15"]
[BlackClock "0:00:41"]

1. e4 {[%clk 0:03:00]}  e6 {[%clk 0:02:59]} 2. d3 {[%clk 0:03:00]}  d5 {[%clk 0:02:59]} 3. Nd2 {[%clk 0:03:00]}  Nf6 {[%clk 0:02:59]} 4. Ngf3 {[%clk 0:03:01]}  c5 {[%clk 0:02:59]} 5. g3 {[%clk 0:03:01]}  Nc6 {[%clk 0:02:59]} 6. Bg2 {[%clk 0:03:01]}  Be7 {[%clk 0:02:58]} 7. O-O {[%clk 0:03:02]}  O-O {[%clk 0:02:58]} 8. e5 {[%clk 0:03:01]}  Nd7 {[%clk 0:02:58]} 9. Re1 {[%clk 0:03:02]}  b5 {[%clk 0:02:58]} 10. h4 {[%clk 0:03:03]}  Qb6 {[%clk 0:02:56]} 11. Nf1 {[%clk 0:03:03]}  Bb7 {[%clk 0:02:54]} 12. Bf4 {[%clk 0:03:03]}  c4 {[%clk 0:02:48]} 13. d4 {[%clk 0:02:58]}  b4 {[%clk 0:02:47]} 14. c3 {[%clk 0:02:58]}  a5 {[%clk 0:02:44]} 15. Ne3 {[%clk 0:02:56]}  a4 {[%clk 0:02:42]} 16. a3 {[%clk 0:02:56]}  bxa3 {[%clk 0:02:40]} 17. bxa3 {[%clk 0:02:56]}  Na5 {[%clk 0:02:40]} 18. Ng5 {[%clk 0:02:52]}  f5 {[%clk 0:02:21]} 19. exf6 {[%clk 0:02:34]}  gxf6 {[%clk 0:02:16]} 20. Nxe6 {[%clk 0:02:29]}  Qxe6 {[%clk 0:02:08]} 21. Nxd5 {[%clk 0:02:29]}  Bxd5 {[%clk 0:02:05]} 22. Rxe6 {[%clk 0:02:26]}  Bxe6 {[%clk 0:02:06]} 23. d5 {[%clk 0:01:57]}  Nb3 {[%clk 0:01:37]} 24. dxe6 {[%clk 0:01:54]}  Nxa1 {[%clk 0:01:31]} 25. Bxa8 {[%clk 0:01:52]}  Nc5 {[%clk 0:01:22]} 26. Bh6 {[%clk 0:01:38]}  f5 {[%clk 0:01:10]} 27. Bxf8 {[%clk 0:01:38]}  Kxf8 {[%clk 0:01:06]} 28. Qxa1 {[%clk 0:01:38]}  Nxe6 {[%clk 0:01:05]} 29. Qb1 {[%clk 0:01:34]}  Ng7 {[%clk 0:00:59]} 30. Bd5 {[%clk 0:01:20]}  Bd6 {[%clk 0:00:41]} 31. Qb7 {[%clk 0:01:15]} 1-0

[Event "January 2 Early 2024"]
[Site "https://www.chess.com"]
[Date "2024.01.02"]
[Round "8"]
[White "Weishaeutel, Moritz"]
[Black "Topalov, Aleksandar"]
[Result "1/2-1/2"]
[Board "119"]
[TimeControl "180+1"]
[WhiteFideId "12967300"]
[BlackFideId "925659"]
[WhiteElo "2570"]
[BlackElo "2404"]
[WhiteTeam "GER"]
[BlackTeam "SRB"]
[WhiteClock "0:00:17"]
[BlackClock "0:00:09"]

1. e4 {[%clk 0:03:00]}  e6 {[%clk 0:02:56]} 2. d4 {[%clk 0:02:58]}  d5 {[%clk 0:02:55]} 3. exd5 {[%clk 0:02:59]}  exd5 {[%clk 0:02:55]} 4. Nf3 {[%clk 0:03:00]}  Bd6 {[%clk 0:02:55]} 5. c4 {[%clk 0:02:59]}  c6 {[%clk 0:02:50]} 6. c5 {[%clk 0:02:57]}  Bc7 {[%clk 0:02:50]} 7. Bd3 {[%clk 0:02:58]}  Nf6 {[%clk 0:02:49]} 8. O-O {[%clk 0:02:57]}  O-O {[%clk 0:02:49]} 9. Bg5 {[%clk 0:02:56]}  Bg4 {[%clk 0:02:47]} 10. Nbd2 {[%clk 0:02:57]}  Nbd7 {[%clk 0:02:46]} 11. Qc2 {[%clk 0:02:57]}  h6 {[%clk 0:02:45]} 12. Bh4 {[%clk 0:02:58]}  Re8 {[%clk 0:02:40]} 13. b4 {[%clk 0:02:57]}  a6 {[%clk 0:02:40]} 14. a4 {[%clk 0:02:57]}  Qe7 {[%clk 0:02:24]} 15. b5 {[%clk 0:02:51]}  axb5 {[%clk 0:02:22]} 16. axb5 {[%clk 0:02:52]}  Bf4 {[%clk 0:02:14]} 17. Rxa8 {[%clk 0:02:10]}  Rxa8 {[%clk 0:02:12]} 18. Re1 {[%clk 0:02:10]}  Qf8 {[%clk 0:02:10]} 19. bxc6 {[%clk 0:01:20]}  bxc6 {[%clk 0:02:09]} 20. Bf5 {[%clk 0:01:20]}  Bxf5 {[%clk 0:01:43]} 21. Qxf5 {[%clk 0:01:21]}  Bxd2 {[%clk 0:01:43]} 22. Nxd2 {[%clk 0:01:22]}  Re8 {[%clk 0:01:40]} 23. Rb1 {[%clk 0:01:19]}  Rb8 {[%clk 0:01:39]} 24. Re1 {[%clk 0:01:18]}  Re8 {[%clk 0:01:39]} 25. Rb1 {[%clk 0:01:11]}  Rb8 {[%clk 0:01:39]} 26. Bg3 {[%clk 0:01:10]}  Rxb1+ {[%clk 0:01:37]} 27. Qxb1 {[%clk 0:01:11]}  Qe8 {[%clk 0:01:33]} 28. h3 {[%clk 0:01:11]}  Nf8 {[%clk 0:01:24]} 29. Qb7 {[%clk 0:01:03]}  Ne6 {[%clk 0:00:57]} 30. Be5 {[%clk 0:00:57]}  Ne4 {[%clk 0:00:46]} 31. Nxe4 {[%clk 0:00:47]}  dxe4 {[%clk 0:00:46]} 32. Qb1 {[%clk 0:00:48]}  f6 {[%clk 0:00:45]} 33. Bxf6 {[%clk 0:00:28]}  gxf6 {[%clk 0:00:44]} 34. Qxe4 {[%clk 0:00:29]}  Ng7 {[%clk 0:00:24]} 35. Qf4 {[%clk 0:00:28]}  Qg6 {[%clk 0:00:19]} 36. d5 {[%clk 0:00:18]}  cxd5 {[%clk 0:00:15]} 37. c6 {[%clk 0:00:19]}  Ne6 {[%clk 0:00:14]} 38. Qd6 {[%clk 0:00:19]}  Qb1+ {[%clk 0:00:10]} 39. Kh2 {[%clk 0:00:19]}  Qe4 {[%clk 0:00:08]} 40. c7 {[%clk 0:00:18]}  Nxc7 {[%clk 0:00:08]} 41. Qxc7 {[%clk 0:00:19]}  Qe5+ {[%clk 0:00:08]} 42. Qxe5 {[%clk 0:00:19]}  fxe5 {[%clk 0:00:08]} 43. Kg3 {[%clk 0:00:19]}  Kf7 {[%clk 0:00:09]} 44. f4 {[%clk 0:00:18]}  e4 {[%clk 0:00:08]} 45. Kf2 {[%clk 0:00:17]}  d4 {[%clk 0:00:07]} 46. g4 {[%clk 0:00:16]}  Kf6 {[%clk 0:00:07]} 47. h4 {[%clk 0:00:17]}  Kg6 {[%clk 0:00:07]} 48. Ke2 {[%clk 0:00:16]}  Kf6 {[%clk 0:00:07]} 49. Kd2 {[%clk 0:00:17]}  Ke6 {[%clk 0:00:07]} 50. g5 {[%clk 0:00:15]}  hxg5 {[%clk 0:00:07]} 51. fxg5 {[%clk 0:00:15]}  Kf5 {[%clk 0:00:07]} 52. Ke2 {[%clk 0:00:16]}  Kg6 {[%clk 0:00:07]} 53. Kd2 {[%clk 0:00:16]}  Kh5 {[%clk 0:00:08]} 54. Ke2 {[%clk 0:00:16]}  Kg6 {[%clk 0:00:08]} 55. Kd2 {[%clk 0:00:17]}  Kh5 {[%clk 0:00:09]} 56. Ke2 {[%clk 0:00:17]}  Kg6 {[%clk 0:00:09]} 1/2-1/2

[Event "January 2 Early 2024"]
[Site "https://www.chess.com"]
[Date "2024.01.02"]
[Round "8"]
[White "Munoz Galvez, Jhon Edison"]
[Black "Kraus, Tomas"]
[Result "1-0"]
[Board "121"]
[TimeControl "180+1"]
[WhiteFideId "4403797"]
[BlackFideId "331708"]
[WhiteElo "2556"]
[BlackElo "2393"]
[WhiteTeam "COL"]
[BlackTeam "CZE"]
[WhiteClock "0:01:18"]
[BlackClock "0:00:00"]

1. d4 {[%clk 0:03:00]}  Nf6 {[%clk 0:02:54]} 2. Nf3 {[%clk 0:03:00]}  g6 {[%clk 0:02:52]} 3. c4 {[%clk 0:02:59]}  Bg7 {[%clk 0:02:52]} 4. Nc3 {[%clk 0:03:00]}  d5 {[%clk 0:02:53]} 5. Nxd5 {[%clk 0:02:59]}  Nxd5 {[%clk 0:02:53]} 6. cxd5 {[%clk 0:03:00]}  Qxd5 {[%clk 0:02:52]} 7. Bd2 {[%clk 0:03:00]}  O-O {[%clk 0:02:45]} 8. Bc3 {[%clk 0:02:59]}  c5 {[%clk 0:02:45]} 9. e3 {[%clk 0:02:59]}  Nc6 {[%clk 0:02:44]} 10. Qd2 {[%clk 0:02:41]}  Rd8 {[%clk 0:02:38]} 11. Rd1 {[%clk 0:02:22]}  Qxa2 {[%clk 0:02:17]} 12. Be2 {[%clk 0:02:16]}  cxd4 {[%clk 0:02:12]} 13. exd4 {[%clk 0:02:14]}  Qd5 {[%clk 0:02:03]} 14. O-O {[%clk 0:02:13]}  Bg4 {[%clk 0:01:27]} 15. h3 {[%clk 0:02:12]}  Bf5 {[%clk 0:01:26]} 16. Rfe1 {[%clk 0:02:12]}  Rac8 {[%clk 0:01:13]} 17. Qe3 {[%clk 0:02:10]}  Be4 {[%clk 0:00:59]} 18. Nd2 {[%clk 0:01:46]}  Bxg2 {[%clk 0:00:54]} 19. Bc4 {[%clk 0:01:45]}  Qh5 {[%clk 0:00:16]} 20. Kxg2 {[%clk 0:01:44]}  Bh6 {[%clk 0:00:16]} 21. Qf3 {[%clk 0:01:28]}  Qg5+ {[%clk 0:00:06]} 22. Kf1 {[%clk 0:01:24]}  Nxd4 {[%clk 0:00:03]} 23. Qxf7+ {[%clk 0:01:23]}  Kh8 {[%clk 0:00:03]} 24. Nf3 {[%clk 0:01:20]}  Qc5 {[%clk 0:00:00]} 25. Rxd4 {[%clk 0:01:18]} 1-0

[Event "January 2 Early 2024"]
[Site "https://www.chess.com"]
[Date "2024.01.02"]
[Round "8"]
[White "Lund, Gunnar"]
[Black "Ferro, Mario"]
[Result "1-0"]
[Board "122"]
[TimeControl "180+1"]
[WhiteFideId "1520814"]
[BlackFideId "810290"]
[WhiteElo "2555"]
[BlackElo "2392"]
[WhiteTeam "NOR"]
[BlackTeam "ITA"]
[WhiteClock "0:00:22"]
[BlackClock "0:00:00"]

1. d4 {[%clk 0:03:00]}  g6 {[%clk 0:02:59]} 2. e4 {[%clk 0:02:53]}  Bg7 {[%clk 0:02:59]} 3. Nc3 {[%clk 0:02:53]}  a6 {[%clk 0:02:58]} 4. f4 {[%clk 0:02:51]}  d5 {[%clk 0:02:50]} 5. e5 {[%clk 0:02:35]}  h5 {[%clk 0:02:48]} 6. Be3 {[%clk 0:02:32]}  Nh6 {[%clk 0:02:47]} 7. h3 {[%clk 0:02:29]}  Nf5 {[%clk 0:02:42]} 8. Bf2 {[%clk 0:02:29]}  h4 {[%clk 0:02:42]} 9. Qd2 {[%clk 0:02:25]}  Nc6 {[%clk 0:02:18]} 10. O-O-O {[%clk 0:02:19]}  b5 {[%clk 0:02:01]} 11. Be2 {[%clk 0:02:09]}  Na5 {[%clk 0:01:44]} 12. b3 {[%clk 0:02:01]}  c6 {[%clk 0:01:21]} 13. Nf3 {[%clk 0:01:55]}  e6 {[%clk 0:01:12]} 14. Bd3 {[%clk 0:01:48]}  Ng3 {[%clk 0:01:06]} 15. Rhe1 {[%clk 0:01:45]}  Qe7 {[%clk 0:01:02]} 16. Kb1 {[%clk 0:01:44]}  Nc4 {[%clk 0:00:47]} 17. bxc4 {[%clk 0:01:18]}  bxc4 {[%clk 0:00:48]} 18. Bf1 {[%clk 0:01:18]}  Qa3 {[%clk 0:00:46]} 19. Ka1 {[%clk 0:01:17]}  Bf8 {[%clk 0:00:45]} 20. Nb1 {[%clk 0:01:12]}  Qa4 {[%clk 0:00:40]} 21. Bxg3 {[%clk 0:01:07]}  hxg3 {[%clk 0:00:39]} 22. c3 {[%clk 0:00:58]}  Rb8 {[%clk 0:00:37]} 23. Rc1 {[%clk 0:00:52]}  c5 {[%clk 0:00:11]} 24. Qc2 {[%clk 0:00:44]}  Qa5 {[%clk 0:00:09]} 25. Nbd2 {[%clk 0:00:41]}  Bd7 {[%clk 0:00:08]} 26. Rb1 {[%clk 0:00:41]}  Rxb1+ {[%clk 0:00:02]} 27. Rxb1 {[%clk 0:00:40]}  Ke7 {[%clk 0:00:02]} 28. dxc5 {[%clk 0:00:37]}  Bh6 {[%clk 0:00:03]} 29. c6 {[%clk 0:00:23]}  Bxc6 {[%clk 0:00:02]} 30. Nd4 {[%clk 0:00:24]}  Bd7 {[%clk 0:00:00]} 31. Rb7 {[%clk 0:00:22]} 1-0

[Event "January 2 Early 2024"]
[Site "https://www.chess.com"]
[Date "2024.01.02"]
[Round "8"]
[White "Skibbe, Willi"]
[Black "Korchynskyi, Mykola"]
[Result "1-0"]
[Board "123"]
[TimeControl "180+1"]
[WhiteFideId "4682190"]
[BlackFideId "34138005"]
[WhiteElo "2390"]
[BlackElo "2550"]
[WhiteTeam "GER"]
[BlackTeam "UKR"]
[WhiteClock "0:00:23"]
[BlackClock "0:00:01"]

1. f4 {[%clk 0:03:00]}  d5 {[%clk 0:02:59]} 2. Nf3 {[%clk 0:02:56]}  Nf6 {[%clk 0:02:59]} 3. e3 {[%clk 0:02:55]}  e6 {[%clk 0:02:56]} 4. Be2 {[%clk 0:02:54]}  Be7 {[%clk 0:02:54]} 5. O-O {[%clk 0:02:55]}  O-O {[%clk 0:02:49]} 6. d3 {[%clk 0:02:54]}  b6 {[%clk 0:02:44]} 7. Nc3 {[%clk 0:02:52]}  Bb7 {[%clk 0:02:43]} 8. Ne5 {[%clk 0:02:48]}  Nbd7 {[%clk 0:02:42]} 9. a4 {[%clk 0:02:47]}  c5 {[%clk 0:02:41]} 10. Bf3 {[%clk 0:02:38]}  Qc8 {[%clk 0:02:39]} 11. Nxd7 {[%clk 0:02:29]}  Qxd7 {[%clk 0:02:37]} 12. e4 {[%clk 0:02:30]}  dxe4 {[%clk 0:02:35]} 13. dxe4 {[%clk 0:02:28]}  Qc7 {[%clk 0:02:36]} 14. e5 {[%clk 0:02:26]}  Rad8 {[%clk 0:02:33]} 15. Qe2 {[%clk 0:01:35]}  Nd5 {[%clk 0:02:30]} 16. Ne4 {[%clk 0:01:26]}  c4 {[%clk 0:02:26]} 17. c3 {[%clk 0:01:22]}  a6 {[%clk 0:02:16]} 18. Kh1 {[%clk 0:01:09]}  b5 {[%clk 0:02:15]} 19. axb5 {[%clk 0:01:09]}  axb5 {[%clk 0:02:16]} 20. Be3 {[%clk 0:01:00]}  Nxe3 {[%clk 0:02:12]} 21. Qxe3 {[%clk 0:00:59]}  Rd3 {[%clk 0:02:12]} 22. Qe2 {[%clk 0:00:57]}  Rfd8 {[%clk 0:02:11]} 23. Ra7 {[%clk 0:00:55]}  Qb6 {[%clk 0:02:10]} 24. Rxb7 {[%clk 0:00:55]}  Qa5 {[%clk 0:01:51]} 25. Rxe7 {[%clk 0:00:50]}  b4 {[%clk 0:01:50]} 26. Nd6 {[%clk 0:00:44]}  bxc3 {[%clk 0:01:43]} 27. bxc3 {[%clk 0:00:44]}  Qxc3 {[%clk 0:01:43]} 28. Be4 {[%clk 0:00:45]}  Re3 {[%clk 0:01:35]} 29. Qxc4 {[%clk 0:00:35]}  Re1 {[%clk 0:01:32]} 30. Qb5 {[%clk 0:00:21]}  Rf8 {[%clk 0:01:16]} 31. h3 {[%clk 0:00:14]}  Qc1 {[%clk 0:01:03]} 32. Rxe1 {[%clk 0:00:14]}  Qxe1+ {[%clk 0:01:03]} 33. Kh2 {[%clk 0:00:15]}  Qf2 {[%clk 0:01:02]} 34. Bf3 {[%clk 0:00:12]}  Qd4 {[%clk 0:00:55]} 35. Qc4 {[%clk 0:00:12]}  Qd2 {[%clk 0:00:40]} 36. Re8 {[%clk 0:00:12]}  Rxe8 {[%clk 0:00:39]} 37. Nxe8 {[%clk 0:00:13]}  h5 {[%clk 0:00:40]} 38. Nd6 {[%clk 0:00:13]}  h4 {[%clk 0:00:39]} 39. Qe4 {[%clk 0:00:13]}  Qf2 {[%clk 0:00:35]} 40. f5 {[%clk 0:00:12]}  Qg3+ {[%clk 0:00:18]} 41. Kg1 {[%clk 0:00:12]}  Qg5 {[%clk 0:00:19]} 42. fxe6 {[%clk 0:00:12]}  fxe6 {[%clk 0:00:20]} 43. Qg4 {[%clk 0:00:10]}  Qxe5 {[%clk 0:00:18]} 44. Ne4 {[%clk 0:00:09]}  Qa1+ {[%clk 0:00:17]} 45. Kf2 {[%clk 0:00:09]}  Qb2+ {[%clk 0:00:17]} 46. Be2 {[%clk 0:00:09]}  Qd4+ {[%clk 0:00:17]} 47. Kf3 {[%clk 0:00:09]}  Qe5 {[%clk 0:00:11]} 48. Qf4 {[%clk 0:00:09]}  Qd5 {[%clk 0:00:09]} 49. Kg4 {[%clk 0:00:09]}  e5 {[%clk 0:00:07]} 50. Qf5 {[%clk 0:00:08]}  Qd4 {[%clk 0:00:05]} 51. Kxh4 {[%clk 0:00:07]}  Qe3 {[%clk 0:00:04]} 52. Bf3 {[%clk 0:00:08]}  Qh6+ {[%clk 0:00:05]} 53. Kg3 {[%clk 0:00:08]}  Qe3 {[%clk 0:00:03]} 54. Qg5 {[%clk 0:00:08]}  Qe1+ {[%clk 0:00:03]} 55. Kh2 {[%clk 0:00:09]}  Qa5 {[%clk 0:00:03]} 56. Qg3 {[%clk 0:00:09]}  Qc7 {[%clk 0:00:03]} 57. Ng5 {[%clk 0:00:10]}  Qe7 {[%clk 0:00:03]} 58. Qg4 {[%clk 0:00:11]}  Qf6 {[%clk 0:00:04]} 59. Qe6+ {[%clk 0:00:11]}  Qxe6 {[%clk 0:00:04]} 60. Nxe6 {[%clk 0:00:12]}  Kf7 {[%clk 0:00:05]} 61. Nc5 {[%clk 0:00:12]}  Kf6 {[%clk 0:00:06]} 62. Ne4+ {[%clk 0:00:13]}  Ke7 {[%clk 0:00:07]} 63. Kg3 {[%clk 0:00:14]}  Kd7 {[%clk 0:00:07]} 64. h4 {[%clk 0:00:15]}  Kc7 {[%clk 0:00:08]} 65. Kg4 {[%clk 0:00:15]}  Kb6 {[%clk 0:00:08]} 66. Kg5 {[%clk 0:00:16]}  Kb7 {[%clk 0:00:09]} 67. Kg6 {[%clk 0:00:17]}  Ka6 {[%clk 0:00:10]} 68. Kxg7 {[%clk 0:00:18]}  Ka7 {[%clk 0:00:11]} 69. Kf6 {[%clk 0:00:19]}  Kb6 {[%clk 0:00:12]} 70. Kxe5 {[%clk 0:00:20]}  Ka5 {[%clk 0:00:13]} 71. g4 {[%clk 0:00:21]}  Kb4 {[%clk 0:00:14]} 72. g5 {[%clk 0:00:22]}  Ka5 {[%clk 0:00:15]} 73. g6 {[%clk 0:00:22]}  Kb4 {[%clk 0:00:16]} 74. g7 {[%clk 0:00:23]}  Ka4 {[%clk 0:00:17]} 75. g8=Q {[%clk 0:00:24]}  Ka3 {[%clk 0:00:17]} 76. Qb8 {[%clk 0:00:24]}  Ka2 {[%clk 0:00:05]} 77. Kd4 {[%clk 0:00:23]}  Ka3 {[%clk 0:00:05]} 78. Kc3 {[%clk 0:00:23]}  Ka4 {[%clk 0:00:01]} 79. Qb4# {[%clk 0:00:23]} 1-0

[Event "January 2 Early 2024"]
[Site "https://www.chess.com"]
[Date "2024.01.02"]
[Round "8"]
[White "Rios Escobar, Adan"]
[Black "Volkov, Sergei"]
[Result "0-1"]
[Board "124"]
[TimeControl "180+1"]
[WhiteFideId "3403645"]
[BlackFideId "4176588"]
[WhiteElo "2386"]
[BlackElo "2537"]
[WhiteTeam "CHI"]
[BlackTeam "RUS"]
[WhiteClock "0:00:03"]
[BlackClock "0:00:16"]

1. d4 {[%clk 0:02:58]}  Nf6 {[%clk 0:02:59]} 2. g3 {[%clk 0:02:58]}  d5 {[%clk 0:02:58]} 3. Nf3 {[%clk 0:02:57]}  Bf5 {[%clk 0:02:58]} 4. c4 {[%clk 0:02:57]}  e6 {[%clk 0:02:58]} 5. Nc3 {[%clk 0:02:57]}  c6 {[%clk 0:02:56]} 6. Nh4 {[%clk 0:02:58]}  Bg6 {[%clk 0:02:51]} 7. Qb3 {[%clk 0:02:57]}  Qb6 {[%clk 0:02:44]} 8. Nxg6 {[%clk 0:02:54]}  hxg6 {[%clk 0:02:27]} 9. c5 {[%clk 0:02:53]}  Qc7 {[%clk 0:02:23]} 10. Bf4 {[%clk 0:02:46]}  Qc8 {[%clk 0:02:23]} 11. Bg2 {[%clk 0:02:46]}  Nbd7 {[%clk 0:02:23]} 12. O-O {[%clk 0:02:47]}  Nh5 {[%clk 0:02:22]} 13. Bd6 {[%clk 0:02:39]}  Bxd6 {[%clk 0:02:17]} 14. cxd6 {[%clk 0:02:40]}  O-O {[%clk 0:02:14]} 15. e4 {[%clk 0:02:35]}  dxe4 {[%clk 0:02:11]} 16. Nxe4 {[%clk 0:02:35]}  Nhf6 {[%clk 0:02:07]} 17. Nc5 {[%clk 0:02:33]}  b6 {[%clk 0:01:49]} 18. Nxe6 {[%clk 0:01:58]}  fxe6 {[%clk 0:01:48]} 19. Qxe6+ {[%clk 0:01:59]}  Rf7 {[%clk 0:01:39]} 20. Rac1 {[%clk 0:01:58]}  Qe8 {[%clk 0:01:22]} 21. Qb3 {[%clk 0:01:30]}  Rd8 {[%clk 0:01:13]} 22. Bxc6 {[%clk 0:01:28]}  Qf8 {[%clk 0:01:07]} 23. Rfe1 {[%clk 0:01:13]}  Qxd6 {[%clk 0:01:05]} 24. Bb5 {[%clk 0:00:43]}  Kf8 {[%clk 0:01:02]} 25. Rcd1 {[%clk 0:00:30]}  Re7 {[%clk 0:00:57]} 26. Rxe7 {[%clk 0:00:17]}  Qxe7 {[%clk 0:00:58]} 27. Bc4 {[%clk 0:00:13]}  g5 {[%clk 0:00:47]} 28. Qf3 {[%clk 0:00:12]}  g6 {[%clk 0:00:43]} 29. Qg2 {[%clk 0:00:11]}  Kg7 {[%clk 0:00:42]} 30. Kf1 {[%clk 0:00:09]}  Ne5 {[%clk 0:00:36]} 31. Re1 {[%clk 0:00:07]}  Rxd4 {[%clk 0:00:36]} 32. Qa8 {[%clk 0:00:06]}  Rxc4 {[%clk 0:00:33]} 33. Qb8 {[%clk 0:00:07]}  Re4 {[%clk 0:00:31]} 34. Rd1 {[%clk 0:00:06]}  Nf3 {[%clk 0:00:28]} 35. Rd8 {[%clk 0:00:05]}  Re1+ {[%clk 0:00:16]} 36. Kg2 {[%clk 0:00:06]}  g4 {[%clk 0:00:16]} 37. Rg8+ {[%clk 0:00:02]}  Nxg8 {[%clk 0:00:16]} 38. Qe5+ {[%clk 0:00:02]}  Qxe5 {[%clk 0:00:15]} 39. h3 {[%clk 0:00:03]}  Rg1# {[%clk 0:00:16]} 0-1

[Event "January 2 Early 2024"]
[Site "https://www.chess.com"]
[Date "2024.01.02"]
[Round "8"]
[White "Nayak Rajesh"]
[Black "Bold, Andre"]
[Result "1-0"]
[Board "127"]
[TimeControl "180+1"]
[WhiteFideId "35017152"]
[BlackFideId "16208471"]
[WhiteElo "2372"]
[BlackElo "2513"]
[WhiteTeam "IND"]
[BlackTeam "GER"]
[WhiteClock "0:01:01"]
[BlackClock "0:00:05"]

1. b3 {[%clk 0:02:59]}  d5 {[%clk 0:02:57]} 2. Bb2 {[%clk 0:03:00]}  Nf6 {[%clk 0:02:57]} 3. f4 {[%clk 0:02:59]}  c5 {[%clk 0:02:56]} 4. Nf3 {[%clk 0:03:00]}  Nc6 {[%clk 0:02:57]} 5. e3 {[%clk 0:03:00]}  g6 {[%clk 0:02:57]} 6. Bb5 {[%clk 0:03:00]}  Bd7 {[%clk 0:02:57]} 7. O-O {[%clk 0:03:00]}  Bg7 {[%clk 0:02:58]} 8. d3 {[%clk 0:03:00]}  O-O {[%clk 0:02:57]} 9. Bxc6 {[%clk 0:02:59]}  Bxc6 {[%clk 0:02:57]} 10. Ne5 {[%clk 0:03:00]}  Rc8 {[%clk 0:02:58]} 11. Nd2 {[%clk 0:03:00]}  Be8 {[%clk 0:02:57]} 12. Ndf3 {[%clk 0:02:58]}  Nd7 {[%clk 0:02:56]} 13. c4 {[%clk 0:02:55]}  f6 {[%clk 0:02:50]} 14. Ng4 {[%clk 0:02:40]}  Bf7 {[%clk 0:02:46]} 15. cxd5 {[%clk 0:02:38]}  Bxd5 {[%clk 0:02:46]} 16. e4 {[%clk 0:02:37]}  Bc6 {[%clk 0:02:39]} 17. f5 {[%clk 0:02:10]}  Nb6 {[%clk 0:02:31]} 18. Rc1 {[%clk 0:02:06]}  Qd6 {[%clk 0:02:26]} 19. Ne3 {[%clk 0:02:00]}  Nd7 {[%clk 0:02:23]} 20. Nc4 {[%clk 0:01:58]}  Qb8 {[%clk 0:02:21]} 21. a4 {[%clk 0:01:58]}  b6 {[%clk 0:02:19]} 22. Qd2 {[%clk 0:01:56]}  a6 {[%clk 0:02:13]} 23. Nh4 {[%clk 0:01:52]}  g5 {[%clk 0:02:04]} 24. Nf3 {[%clk 0:01:52]}  b5 {[%clk 0:02:04]} 25. axb5 {[%clk 0:01:51]}  axb5 {[%clk 0:02:04]} 26. Ne3 {[%clk 0:01:52]}  h5 {[%clk 0:01:57]} 27. g4 {[%clk 0:01:51]}  hxg4 {[%clk 0:01:54]} 28. Nxg4 {[%clk 0:01:50]}  Rf7 {[%clk 0:01:47]} 29. Kg2 {[%clk 0:01:50]}  Bf8 {[%clk 0:01:47]} 30. h4 {[%clk 0:01:49]}  gxh4 {[%clk 0:01:29]} 31. Nxh4 {[%clk 0:01:49]}  Rg7 {[%clk 0:01:23]} 32. Ng6 {[%clk 0:01:45]}  Kf7 {[%clk 0:01:19]} 33. Rh1 {[%clk 0:01:41]}  c4 {[%clk 0:01:15]} 34. bxc4 {[%clk 0:01:38]}  bxc4 {[%clk 0:01:15]} 35. Rxc4 {[%clk 0:01:38]}  Ba8 {[%clk 0:01:09]} 36. Rxc8 {[%clk 0:01:35]}  Qxc8 {[%clk 0:01:10]} 37. Rh8 {[%clk 0:01:36]}  Rg8 {[%clk 0:00:42]} 38. Rxg8 {[%clk 0:01:33]}  Kxg8 {[%clk 0:00:43]} 39. Bd4 {[%clk 0:01:30]}  Kf7 {[%clk 0:00:36]} 40. Kf3 {[%clk 0:01:25]}  Qa6 {[%clk 0:00:33]} 41. Nf4 {[%clk 0:01:21]}  Qb5 {[%clk 0:00:30]} 42. Qh2 {[%clk 0:01:19]}  Ke8 {[%clk 0:00:26]} 43. Qh5+ {[%clk 0:01:15]}  Kd8 {[%clk 0:00:26]} 44. Ne6+ {[%clk 0:01:15]}  Kc8 {[%clk 0:00:23]} 45. Qe8+ {[%clk 0:01:13]}  Kb7 {[%clk 0:00:22]} 46. Nc5+ {[%clk 0:01:13]}  Kc7 {[%clk 0:00:19]} 47. Qxa8 {[%clk 0:01:11]}  Nxc5 {[%clk 0:00:17]} 48. Bxc5 {[%clk 0:01:10]}  Qxd3+ {[%clk 0:00:14]} 49. Be3 {[%clk 0:01:10]}  Qf1+ {[%clk 0:00:14]} 50. Nf2 {[%clk 0:01:09]}  Bh6 {[%clk 0:00:07]} 51. Qa7+ {[%clk 0:01:07]}  Kd8 {[%clk 0:00:06]} 52. Bxh6 {[%clk 0:01:04]}  Qb1 {[%clk 0:00:05]} 53. Qe3 {[%clk 0:01:01]}  Ke8 {[%clk 0:00:05]} 54. Bf4 {[%clk 0:01:00]}  Kf7 {[%clk 0:00:05]} 55. Qe2 {[%clk 0:01:00]}  Ke8 {[%clk 0:00:04]} 56. Kg3 {[%clk 0:01:00]}  Kf7 {[%clk 0:00:04]} 57. Qh5+ {[%clk 0:01:00]}  Kf8 {[%clk 0:00:03]} 58. Bh6+ {[%clk 0:01:00]}  Kg8 {[%clk 0:00:04]} 59. Qg6+ {[%clk 0:01:00]}  Kh8 {[%clk 0:00:05]} 60. Qg7# {[%clk 0:01:01]} 1-0

[Event "January 2 Early 2024"]
[Site "https://www.chess.com"]
[Date "2024.01.02"]
[Round "8"]
[White "Bueno, Alfeu Junior Varela"]
[Black "Yashmetov, Mikhail"]
[Result "0-1"]
[Board "129"]
[TimeControl "180+1"]
[WhiteFideId "2108879"]
[BlackFideId "24198900"]
[WhiteElo "2355"]
[BlackElo "2505"]
[WhiteTeam "BRA"]
[BlackTeam "RUS"]
[WhiteClock "0:00:01"]
[BlackClock "0:00:58"]

1. e4 {[%clk 0:03:00]}  c6 {[%clk 0:02:55]} 2. d4 {[%clk 0:03:00]}  d5 {[%clk 0:02:56]} 3. f3 {[%clk 0:03:00]}  e5 {[%clk 0:02:56]} 4. dxe5 {[%clk 0:02:56]}  Bc5 {[%clk 0:02:56]} 5. exd5 {[%clk 0:02:56]}  Qb6 {[%clk 0:02:57]} 6. Nh3 {[%clk 0:02:56]}  Bxh3 {[%clk 0:02:51]} 7. gxh3 {[%clk 0:02:57]}  cxd5 {[%clk 0:02:50]} 8. Nc3 {[%clk 0:02:54]}  Ne7 {[%clk 0:02:43]} 9. Nxd5 {[%clk 0:02:14]}  Nxd5 {[%clk 0:02:40]} 10. Qxd5 {[%clk 0:02:15]}  Nc6 {[%clk 0:02:35]} 11. Bg5 {[%clk 0:01:23]}  Qxb2 {[%clk 0:02:26]} 12. Rd1 {[%clk 0:01:00]}  Bb4+ {[%clk 0:02:20]} 13. Kf2 {[%clk 0:00:31]}  O-O {[%clk 0:02:08]} 14. Bc4 {[%clk 0:00:28]}  Nxe5 {[%clk 0:02:00]} 15. Bb3 {[%clk 0:00:28]}  Rae8 {[%clk 0:01:39]} 16. Rhg1 {[%clk 0:00:23]}  Ng6 {[%clk 0:01:22]} 17. Bc1 {[%clk 0:00:22]}  Qf6 {[%clk 0:01:18]} 18. Bg5 {[%clk 0:00:16]}  Qb6+ {[%clk 0:01:19]} 19. Kg3 {[%clk 0:00:15]}  Re5 {[%clk 0:01:12]} 20. Qd8 {[%clk 0:00:10]}  Rxd8 {[%clk 0:01:01]} 21. Rxd8+ {[%clk 0:00:11]}  Bf8 {[%clk 0:01:01]} 22. Be7 {[%clk 0:00:01]}  Rxe7 {[%clk 0:00:58]} 0-1